bitfinex-derivatives/quotes_BTCF0:USTF0_20260106
["timestamp","ask_amount","ask_price","bid_price","bid_amount"]
[1767739149568,0.02764711,93119.0,93111.0,0.09136]
[1767739149771,0.11921118,93118.0,93099.0,0.09441779]
[1767739150076,0.00010558,93119.0,93100.0,0.09136]
[1767739150265,0.00010558,93119.0,93101.0,0.09136]
[1767739150774,0.02834209,93117.0,93102.0,0.102105]
[1767739150974,0.02834209,93111.0,93088.0,0.0339677]
[1767739151172,0.02834209,93109.0,93096.0,0.010746]
[1767739151374,0.09166965,93107.0,93095.0,0.07409519]
[1767739151686,0.09166965,93107.0,93094.0,0.09136]
[1767739152069,0.09166965,93107.0,93093.0,0.010746]
[1767739152270,0.00327115,93106.0,93093.0,0.102106]
[1767739152575,0.0034042,93105.0,93093.0,0.102106]
[1767739152772,0.00327115,93102.0,93090.0,0.010747]
[1767739152968,9.99e-05,93101.0,93090.0,0.102107]
[1767739153164,0.10078915,93100.0,93090.0,0.102107]
[1767739153372,9.99e-05,93101.0,93090.0,0.102107]
[1767739153674,9.99e-05,93101.0,93092.0,0.010746]
[1767739154775,9.99e-05,93101.0,93093.0,0.010746]
[1767739154979,9.99e-05,93101.0,93095.0,0.010746]
[1767739155178,9.99e-05,93101.0,93092.0,0.010746]
[1767739155875,0.00210855,93100.0,93092.0,0.010746]
[1767739156079,9.99e-05,93101.0,93092.0,0.010746]
[1767739156281,9.99e-05,93101.0,93089.0,0.13053398]
[1767739156578,9.99e-05,93101.0,93095.0,0.010746]
[1767739156780,9.99e-05,93101.0,93091.0,0.09441779]
[1767739157479,9.99e-05,93101.0,93097.0,0.010746]
[1767739158485,9.99e-05,93101.0,93094.0,0.010746]
[1767739158878,9.99e-05,93101.0,93093.0,0.010746]
[1767739161286,9.99e-05,93101.0,93092.0,0.09136]
[1767739161486,9.99e-05,93101.0,93092.0,0.102106]
[1767739162576,9.99e-05,93101.0,93092.0,0.010746]
[1767739162779,9.99e-05,93101.0,93089.0,0.00214849]
[1767739163287,0.010745,93100.0,93089.0,0.00214849]
[1767739163487,0.00012058,93099.0,93089.0,0.00214849]
[1767739163682,0.00012058,93099.0,93090.0,0.09441779]
[1767739163884,0.00012058,93099.0,93092.0,0.09441779]
[1767739164181,0.010745,93107.0,93094.0,0.09441779]
[1767739164386,0.09166965,93116.0,93094.0,0.09441779]
[1767739164588,0.09166965,93116.0,93090.0,0.0339677]
[1767739164589,0.10078915,93110.0,93090.0,0.09441779]
[1767739164787,0.10078915,93110.0,93092.0,0.09441779]
[1767739164989,0.010745,93107.0,93092.0,0.09441779]
[1767739165184,0.10078915,93110.0,93093.0,0.010746]
[1767739165378,0.010744,93109.0,93092.0,0.09441779]
[1767739165579,0.010744,93109.0,93092.0,0.12838549]
[1767739165890,0.010744,93109.0,93093.0,0.09441779]
[1767739166089,0.010744,93109.0,93093.0,0.12838549]
[1767739166289,0.10078915,93110.0,93094.0,0.09441779]
[1767739166586,0.010744,93112.0,93094.0,0.12838549]
[1767739166792,0.10078915,93110.0,93095.0,0.09441779]
[1767739167188,0.010744,93114.0,93099.0,0.09441779]
[1767739167388,0.10078915,93110.0,93099.0,0.09441779]
[1767739168691,0.10078915,93110.0,93096.0,0.010746]
[1767739169296,0.10078915,93110.0,93095.0,0.09441779]
[1767739169590,0.10078915,93110.0,93095.0,0.10516379]
[1767739169790,0.10078915,93110.0,93097.0,0.010746]
[1767739171290,0.10078915,93110.0,93097.0,0.09013524]
[1767739171591,0.19214915,93120.0,93108.0,0.10088024]
[1767739171793,0.10078915,93120.0,93108.0,0.10088024]
[1767739172595,0.09136,93125.0,93111.0,0.010744]
[1767739173492,0.36548,93137.0,93119.0,0.09013524]
[1767739173685,0.09136,93132.0,93120.0,0.09013524]
[1767739173889,0.09136,93133.0,93124.0,0.10087824]
[1767739174288,0.09136,93133.0,93124.0,0.09013524]
[1767739174998,0.09136,93133.0,93120.0,0.09013524]
[1767739175300,0.09136,93133.0,93125.0,0.010742]
[1767739175599,0.09136,93141.0,93125.0,0.010742]
[1767739175798,0.09136,93141.0,93125.0,0.10087724]
[1767739176401,0.09136,93141.0,93126.0,0.09013524]
[1767739176698,0.09136,93141.0,93127.0,0.09013524]
[1767739177402,0.09136,93141.0,93132.0,0.09013524]
[1767739177586,0.09136,93148.0,93132.0,0.09013524]
[1767739177994,0.09136,93148.0,93134.0,0.09013524]
[1767739180797,0.09136,93148.0,93134.0,0.12180906]
[1767739180995,0.09136,93148.0,93137.0,0.09013524]
[1767739181198,0.00214711,93149.0,93137.0,0.09013524]
[1767739181394,0.09136,93155.0,93137.0,0.12180906]
[1767739181603,0.09136,93155.0,93139.0,0.09013524]
[1767739182008,0.09136,93155.0,93140.0,0.09013524]
[1767739182906,0.010739,93154.0,93136.0,0.03167382]
[1767739183098,0.010739,93154.0,93137.0,0.09013524]
[1767739183299,0.010739,93154.0,93139.0,0.09013524]
[1767739183500,0.010739,93154.0,93138.0,0.03167382]
[1767739183501,0.010739,93154.0,93141.0,0.09013524]
[1767739183698,0.09136,93155.0,93141.0,0.09013524]
[1767739183900,0.09136,93155.0,93142.0,0.09013524]
[1767739186110,0.09136,93155.0,93138.0,0.03167382]
[1767739186806,0.18347292,93155.0,93133.0,0.03167382]
[1767739187010,0.01074,93150.0,93134.0,0.03167382]
[1767739187306,0.010739,93153.0,93134.0,0.03167382]
[1767739187506,0.09136,93155.0,93134.0,0.03167382]
[1767739187808,0.01074,93151.0,93134.0,0.03167382]
[1767739188008,0.01074,93151.0,93136.0,0.03167382]
[1767739190901,0.09136,93155.0,93136.0,0.03167382]
[1767739191099,0.01074,93148.0,93136.0,8.2e-07]
[1767739191306,0.120577,93155.0,93136.0,8.2e-07]
[1767739191513,0.01074,93147.0,93136.0,8.2e-07]
[1767739193212,0.120577,93155.0,93136.0,8.2e-07]
[1767739194211,0.01074,93150.0,93136.0,8.2e-07]
[1767739194810,0.01074,93151.0,93136.0,8.2e-07]
[1767739195512,0.01074,93151.0,93135.0,0.09013524]
[1767739196813,0.01074,93151.0,93135.0,0.12180906]
[1767739198513,0.01074,93151.0,93136.0,0.12755487]
[1767739199905,0.010739,93154.0,93136.0,0.12755487]
[1767739200105,0.010739,93154.0,93135.0,0.010741]
[1767739200106,0.01575561,93158.0,93140.0,0.09686902]
[1767739200305,0.010738,93162.0,93147.0,0.12755487]
[1767739200509,0.010738,93164.0,93147.0,0.12755487]
[1767739200712,0.09136,93165.0,93156.0,0.12755487]
[1767739201011,0.010738,93169.0,93157.0,0.03068585]
[1767739201216,0.01553277,93169.0,93156.0,0.09686902]
[1767739201515,0.67172,93172.0,93153.0,0.03068585]
[1767739201710,0.4,93169.0,93153.0,0.03068585]
[1767739202110,0.4,93169.0,93150.0,0.095253]
[1767739202111,0.410738,93169.0,93151.0,0.01074]
[1767739202312,0.010738,93169.0,93151.0,0.01074]
[1767739203818,0.0259174,93169.0,93151.0,0.04267486]
[1767739206420,0.0151794,93169.0,93154.0,0.010739]
[1767739206621,0.02696728,93171.0,93154.0,0.010739]
[1767739206811,0.4,93170.0,93154.0,0.010739]
[1767739207616,0.4,93170.0,93156.0,0.03193486]
[1767739207825,0.41532179,93170.0,93156.0,0.13792686]
[1767739208624,0.41532179,93170.0,93156.0,0.105992]
[1767739209521,0.01532179,93170.0,93158.0,0.12718786]
[1767739209717,0.09136,93173.0,93158.0,0.12718786]
[1767739209920,0.91508,93180.0,93162.0,0.03193486]
[1767739210110,0.02580096,93181.0,93168.0,0.03193486]
[1767739210111,0.010736,93181.0,93168.0,0.03193486]
[1767739210316,0.01789283,93179.0,93168.0,0.12718786]
[1767739210511,0.01789283,93179.0,93169.0,0.12718786]
[1767739210923,0.02862883,93179.0,93169.0,0.12718786]
[1767739211423,0.02862883,93179.0,93169.0,0.095253]
[1767739213720,0.010737,93177.0,93169.0,0.095253]
[1767739213921,0.01789283,93179.0,93170.0,0.12718786]
[1767739216628,0.376134,93199.0,93170.0,0.12718786]
[1767739216629,0.09132,93202.0,93186.0,0.12718786]
[1767739216928,0.09132,93203.0,93184.0,0.010736]
[1767739217719,0.10719021,93203.0,93184.0,0.010736]
[1767739218331,0.10719021,93203.0,93186.0,0.010735]
[1767739218816,0.10719021,93203.0,93187.0,0.03193486]
[1767739220234,0.19966003,93203.0,93186.0,0.010735]
[1767739220430,0.10719021,93203.0,93186.0,0.04266986]
[1767739221834,0.13698149,93203.0,93186.0,0.010735]
[1767739222142,0.14771549,93203.0,93184.0,0.095253]
[1767739222439,0.14771549,93203.0,93184.0,0.12718786]
[1767739222639,0.11792421,93203.0,93185.0,0.03193486]
[1767739223638,0.10719021,93203.0,93187.0,0.04266986]
[1767739224231,0.10719021,93203.0,93187.0,0.010735]
[1767739224631,0.10719021,93203.0,93185.0,0.12718786]
[1767739226934,0.10719021,93203.0,93186.0,0.010735]
[1767739228042,0.13698149,93203.0,93186.0,0.010735]
[1767739228542,0.10719021,93203.0,93186.0,0.010735]
[1767739228842,0.01587021,93203.0,93192.0,0.010735]
[1767739229140,0.02979128,93210.0,93192.0,0.010735]
[1767739229541,0.02979128,93209.0,93192.0,0.010735]
[1767739229741,0.02979128,93209.0,93194.0,0.010735]
[1767739230245,0.02979128,93209.0,93196.0,0.010734]
[1767739230440,0.09246982,93210.0,93196.0,0.010734]
[1767739230640,0.09246982,93210.0,93193.0,0.010735]
[1767739230842,0.02979128,93209.0,93193.0,0.010735]
[1767739231043,0.02979128,93208.0,93193.0,0.010735]
[1767739231236,0.09132,93211.0,93193.0,0.010735]
[1767739231647,0.10707064,93211.0,93193.0,0.010735]
[1767739231846,0.13631329,93211.0,93195.0,0.010734]
[1767739232036,0.02924265,93210.0,93195.0,0.010734]
[1767739232538,0.10707064,93211.0,93199.0,0.010734]
[1767739232938,0.10707064,93211.0,93196.0,0.02967672]
[1767739233539,0.10707064,93211.0,93199.0,0.010734]
[1767739234342,0.10707064,93211.0,93200.0,0.10061096]
[1767739234651,0.10707064,93211.0,93201.0,0.010734]
[1767739235148,0.010732,93220.0,93204.0,0.04040972]
[1767739235149,0.09128,93220.0,93204.0,0.04040972]
[1767739235351,0.10682021,93220.0,93206.0,0.010733]
[1767739235538,0.10682021,93220.0,93205.0,0.02967672]
[1767739235743,0.02924265,93203.0,93195.0,0.09128]
[1767739236045,0.02924265,93203.0,93193.0,0.09128]
[1767739236441,0.12168839,93206.0,93193.0,0.09128]
[1767739236641,0.010734,93202.0,93193.0,0.09128]
[1767739236849,0.01038224,93202.0,93193.0,0.09128]
[1767739237048,0.09244574,93206.0,93193.0,0.09128]
[1767739237348,0.02924265,93210.0,93193.0,0.09128]
[1767739238148,0.010733,93208.0,93193.0,0.09128]
[1767739242141,0.12985361,93210.0,93193.0,0.09128]
[1767739242549,0.010733,93205.0,93193.0,0.09128]
[1767739245353,0.010733,93205.0,93189.0,0.09754784]
[1767739245652,0.010733,93205.0,93189.0,0.10828284]
[1767739245853,0.010733,93205.0,93185.0,0.02967672]
[1767739246052,0.02924265,93201.0,93186.0,0.09128]
[1767739246749,0.02924265,93201.0,93185.0,0.09128]
[1767739247249,0.010735,93190.0,93172.0,0.09754784]
[1767739247448,0.12985361,93191.0,93172.0,0.09754784]
[1767739247756,0.010736,93186.0,93170.0,0.09128]
[1767739247954,0.010736,93187.0,93170.0,0.09128]
[1767739248452,0.010736,93187.0,93169.0,0.04041472]
[1767739248953,0.010736,93185.0,93167.0,0.09128]
[1767739249455,0.010736,93185.0,93168.0,0.010738]
[1767739249656,0.10061096,93180.0,93166.0,0.09754784]
[1767739250151,0.010736,93179.0,93161.0,0.12722456]
[1767739250458,0.010736,93179.0,93161.0,0.21850456]
[1767739250858,0.010737,93177.0,93162.0,0.02967672]
[1767739251262,0.03997965,93177.0,93161.0,0.09128]
[1767739251561,0.010737,93177.0,93161.0,0.09128]
[1767739252362,0.010737,93175.0,93159.0,0.02967672]
[1767739252659,0.010737,93175.0,93156.0,0.09754784]
[1767739252660,0.010737,93175.0,93158.0,0.12095672]
[1767739253459,0.10061096,93170.0,93152.0,0.010739]
[1767739253756,0.02924265,93169.0,93153.0,0.09128]
[1767739254163,0.03998065,93169.0,93153.0,0.09128]
[1767739254469,0.02924265,93168.0,93153.0,0.09128]
[1767739254754,0.02924265,93168.0,93145.0,0.09754784]
[1767739254755,0.02924265,93162.0,93146.0,0.09128]
[1767739254961,0.10061096,93160.0,93142.0,0.02967672]
[1767739255751,0.11134996,93160.0,93142.0,0.09754784]
[1767739255948,0.02924265,93158.0,93138.0,0.04041772]
[1767739256155,0.02924265,93158.0,93124.0,0.00010751]
[1767739256156,0.02924265,93154.0,93134.0,0.04041772]
[1767739256465,0.10061096,93150.0,93132.0,0.09754784]
[1767739256655,0.10061096,93150.0,93132.0,0.12722456]
[1767739256857,0.10061096,93150.0,93133.0,0.02967672]
[1767739257162,0.10061096,93150.0,93133.0,0.04041872]
[1767739258159,0.10061096,93150.0,93135.0,0.010741]
[1767739258760,0.10061096,93150.0,93134.0,0.02732978]
[1767739261559,0.10061096,93150.0,93135.0,0.010741]
[1767739265270,0.10061096,93145.0,93126.0,0.12309668]
[1767739265571,0.10061096,93141.0,93126.0,0.09472506]
[1767739265765,0.10061096,93141.0,93127.0,0.010742]
[1767739265971,0.10061096,93141.0,93125.0,0.09132]
[1767739266973,0.10061096,93140.0,93124.0,0.00010751]
[1767739267166,0.11725117,93140.0,93124.0,0.00010751]
[1767739268172,0.11725117,93140.0,93129.0,0.010742]
[1767739269669,0.010741,93137.0,93125.0,0.010743]
[1767739269867,0.010742,93135.0,93124.0,0.00010751]
[1767739271071,0.10061096,93134.0,93117.0,0.010744]
[1767739271268,0.10061096,93130.0,93117.0,0.010744]
[1767739271773,0.11135296,93130.0,93115.0,0.010744]
[1767739271969,8.464e-05,93129.0,93115.0,0.010744]
[1767739272164,0.12856461,93124.0,93111.0,0.09132]
[1767739272372,0.10061096,93121.0,93111.0,0.102064]
[1767739272566,0.02923497,93122.0,93111.0,0.09132]
[1767739272868,0.10061096,93121.0,93112.0,0.010744]
[1767739273173,0.02923497,93122.0,93112.0,0.010744]
[1767739273564,0.02923497,93122.0,93104.0,0.010745]
[1767739273565,0.010743,93119.0,93104.0,0.010745]
[1767739273770,0.03997897,93117.0,93103.0,0.102065]
[1767739273964,0.03997897,93117.0,93103.0,0.09132]
[1767739274367,0.02923497,93117.0,93103.0,0.09132]
[1767739275175,0.10061096,93113.0,93099.0,0.010746]
[1767739275484,0.02923497,93117.0,93099.0,0.010746]
[1767739275485,0.00010069,93112.0,93099.0,0.010746]
[1767739275674,0.10061096,93110.0,93101.0,0.010745]
[1767739275867,0.10061096,93110.0,93095.0,0.09472506]
[1767739275868,0.10061096,93110.0,93095.0,0.10547106]
[1767739276069,0.10061096,93110.0,93095.0,0.010746]
[1767739276271,0.10061096,93110.0,93097.0,0.010746]
[1767739276870,0.10061096,93110.0,93099.0,0.010746]
[1767739278173,0.10061096,93110.0,93101.0,0.010745]
[1767739280877,0.10061096,93110.0,93098.0,0.010746]
[1767739282369,0.12984593,93110.0,93098.0,0.010746]
[1767739282668,0.02923497,93104.0,93095.0,0.010746]
[1767739282871,0.00011998,93103.0,93090.0,0.09132]
[1767739283375,0.00011998,93103.0,93094.0,0.010746]
[1767739283575,0.02935495,93103.0,93094.0,0.010746]
[1767739284376,0.02935495,93103.0,93090.0,0.09132]
[1767739284675,0.02935495,93103.0,93094.0,0.010746]
[1767739285266,0.02923497,93093.0,93077.0,0.010748]
[1767739285474,0.10061096,93090.0,93076.0,0.010748]
[1767739285671,0.12984593,93090.0,93076.0,0.010748]
[1767739285866,9.561e-05,93089.0,93074.0,0.09136]
[1767739286066,9.561e-05,93089.0,93082.0,0.010747]
[1767739286566,9.561e-05,93089.0,93074.0,0.09136]
[1767739286567,0.09932964,93094.0,93075.0,0.02837162]
[1767739286870,0.10061096,93100.0,93087.0,0.010747]
[1767739287073,0.10061096,93100.0,93090.0,0.010747]
[1767739287273,0.09136,93101.0,93090.0,0.010747]
[1767739287772,0.10061096,93100.0,93090.0,0.010747]
[1767739287979,0.09136,93101.0,93092.0,0.010746]
[1767739289269,0.09136,93101.0,93096.0,0.010746]
[1767739289474,0.09136,93111.0,93099.0,0.010746]
[1767739289678,0.09136,93111.0,93101.0,0.010745]
[1767739290577,0.09136,93111.0,93103.0,0.010745]
[1767739290781,0.09136,93111.0,93101.0,0.010745]
[1767739294385,0.02976096,93105.0,93084.0,0.03010272]
[1767739294585,0.09424186,93106.0,93084.0,0.03010272]
[1767739294586,0.12400282,93104.0,93092.0,0.010746]
[1767739294885,0.02976096,93102.0,93092.0,0.010746]
[1767739295281,0.02976096,93102.0,93089.0,0.010747]
[1767739295584,0.02976096,93102.0,93085.0,0.09136]
[1767739295793,0.02976096,93102.0,93092.0,0.010746]
[1767739297886,0.02976096,93105.0,93094.0,0.010746]
[1767739298088,0.12400282,93109.0,93096.0,0.010746]
[1767739298278,0.02976096,93108.0,93096.0,0.010746]
[1767739299289,0.02976096,93108.0,93093.0,0.010746]
[1767739300787,0.02976096,93108.0,93095.0,0.010746]
[1767739301490,0.12400282,93108.0,93095.0,0.010746]
[1767739301686,0.02976096,93107.0,93095.0,0.010746]
[1767739308095,0.02976096,93107.0,93097.0,0.010746]
[1767739309793,0.09424186,93108.0,93099.0,0.010746]
[1767739309990,0.0021478,93119.0,93116.0,0.010744]
[1767739310984,8e-07,93119.0,93116.0,0.010744]
[1767739314796,8e-07,93119.0,93112.0,0.010744]
[1767739315189,8e-07,93119.0,93110.0,0.010744]
[1767739315391,0.02976176,93119.0,93107.0,0.010745]
[1767739319299,0.02976176,93119.0,93109.0,0.010744]
[1767739320402,0.02976096,93118.0,93109.0,0.010744]
[1767739322206,0.02976096,93118.0,93106.0,0.102105]
[1767739322805,0.12773727,93118.0,93106.0,0.102105]
[1767739323007,0.12773727,93118.0,93107.0,0.010745]
[1767739325108,8e-07,93119.0,93109.0,0.010744]
[1767739325299,0.02801459,93119.0,93109.0,0.010744]
[1767739326010,0.02801379,93118.0,93109.0,0.010744]
[1767739329213,0.02801379,93117.0,93106.0,0.09136]
[1767739329709,0.09935631,93117.0,93106.0,0.09136]
[1767739329905,0.09935631,93117.0,93109.0,0.010744]
[1767739338816,8e-07,93119.0,93110.0,0.010744]
[1767739339212,8e-07,93119.0,93106.0,0.09136]
[1767739340213,8e-07,93119.0,93112.0,0.010744]
[1767739340912,8e-07,93119.0,93106.0,0.09136]
[1767739341215,0.09136,93133.0,93121.0,0.02838602]
[1767739341406,0.09136,93133.0,93120.0,0.09649708]
[1767739341606,0.09136,93133.0,93118.0,0.02838602]
[1767739341807,0.09136,93133.0,93115.0,0.1248831]
[1767739342116,0.09136,93133.0,93122.0,0.010743]
[1767739343024,0.09136,93133.0,93124.0,0.010743]
[1767739343213,0.09136,93133.0,93126.0,0.010742]
[1767739343419,0.10800021,93140.0,93132.0,0.010742]
[1767739343717,0.10800021,93140.0,93125.0,0.02838602]
[1767739344108,0.01664021,93140.0,93125.0,0.02838602]
[1767739344308,0.00214711,93149.0,93125.0,0.02838602]
[1767739344309,0.09136,93144.0,93125.0,0.02838602]
[1767739344509,0.11937379,93144.0,93125.0,0.02838602]
[1767739344910,0.02801379,93144.0,93125.0,0.02838602]
[1767739345111,0.02801379,93144.0,93133.0,0.010742]
[1767739346017,0.01700602,93144.0,93130.0,0.02838602]
[1767739346217,0.010739,93154.0,93122.0,0.010743]
[1767739346218,0.11937379,93158.0,93144.0,0.01074]
[1767739346521,0.02801379,93156.0,93144.0,0.01074]
[1767739347017,0.10857712,93158.0,93141.0,0.02838602]
[1767739347213,0.10857712,93158.0,93148.0,0.01074]
[1767739347412,0.01721712,93158.0,93148.0,0.01074]
[1767739347610,0.09136,93165.0,93147.0,0.02838602]
[1767739348119,0.10854551,93165.0,93147.0,0.02838602]
[1767739348312,0.10854551,93165.0,93150.0,0.01074]
[1767739348513,0.10854551,93165.0,93152.0,0.010739]
[1767739354019,0.10854551,93165.0,93154.0,0.010739]
[1767739356017,0.02492521,93164.0,93154.0,0.010739]
[1767739356531,0.02492521,93164.0,93151.0,0.01074]
[1767739357031,0.20369299,93165.0,93151.0,0.01074]
[1767739357920,0.20369299,93165.0,93153.0,0.010739]
[1767739358124,0.10854551,93165.0,93153.0,0.010739]
[1767739358928,0.01718551,93165.0,93157.0,0.010739]
[1767739359126,0.02492521,93166.0,93157.0,0.010739]
[1767739360227,0.02492521,93169.0,93157.0,0.010739]
[1767739360422,0.01669873,93169.0,93157.0,0.010739]
[1767739360622,0.02492521,93169.0,93157.0,0.010739]
[1767739361024,0.0414089,93169.0,93157.0,0.010739]
[1767739361931,0.01648369,93169.0,93157.0,0.010739]
[1767739362126,0.12007269,93170.0,93157.0,0.010739]
[1767739362333,0.02492521,93169.0,93157.0,0.010739]
[1767739362627,0.02492521,93162.0,93142.0,0.0264125]
[1767739362833,0.02492521,93158.0,93145.0,0.01074]
[1767739363032,0.02492521,93157.0,93146.0,0.09132]
[1767739365025,0.09514748,93158.0,93147.0,0.01074]
[1767739369334,0.12007269,93158.0,93147.0,0.01074]
[1767739370237,0.02492521,93156.0,93147.0,0.01074]
[1767739370439,0.02492521,93156.0,93146.0,0.09132]
[1767739371036,0.03566421,93159.0,93146.0,0.09132]
[1767739371645,0.02492521,93158.0,93146.0,0.09132]
[1767739371943,0.02492521,93158.0,93144.0,0.01074]
[1767739372146,0.02492521,93153.0,93142.0,0.09132]
[1767739372335,0.02492521,93148.0,93128.0,0.1177325]
[1767739372537,0.02492521,93147.0,93130.0,0.1006982]
[1767739372736,0.02492521,93147.0,93131.0,0.09132]
[1767739373242,0.03566521,93147.0,93133.0,0.010742]
[1767739374145,0.02492521,93145.0,93131.0,0.09132]
[1767739374746,0.02492521,93145.0,93132.0,0.010742]
[1767739375543,0.02492521,93145.0,93130.0,0.1006982]
[1767739376347,0.02492521,93145.0,93133.0,0.010742]
[1767739377449,0.02492521,93145.0,93130.0,0.010742]
[1767739377642,0.02492521,93141.0,93130.0,0.010742]
[1767739378043,0.02492521,93137.0,93129.0,0.06698579]
[1767739378441,0.09514748,93138.0,93129.0,0.06698579]
[1767739378745,0.02492521,93141.0,93129.0,0.07772779]
[1767739379542,0.02492521,93141.0,93131.0,0.010742]
[1767739379742,0.09514748,93144.0,93131.0,0.010742]
[1767739379941,0.02492521,93143.0,93131.0,0.010742]
[1767739380144,0.02492521,93142.0,93129.0,0.06698579]
[1767739380944,0.02492521,93141.0,93129.0,0.06698579]
[1767739381144,0.12007269,93141.0,93129.0,0.06698579]
[1767739381946,0.09514748,93141.0,93129.0,0.06698579]
[1767739382347,0.0239525,93140.0,93129.0,0.06698579]
[1767739382544,0.0239525,93117.0,93092.0,0.02295986]
[1767739382857,0.1006982,93110.0,93092.0,0.02295986]
[1767739383149,0.1152725,93113.0,93093.0,0.02295986]
[1767739383456,0.1152725,93113.0,93094.0,0.02510766]
[1767739384256,0.1152725,93113.0,93094.0,0.03585366]
[1767739385150,0.1152725,93113.0,93096.0,0.010746]
[1767739385649,0.1006982,93110.0,93096.0,0.010746]
[1767739390752,0.1006982,93110.0,93102.0,0.0021478]
[1767739392152,0.02305405,93106.0,93089.0,0.00214849]
[1767739392358,0.09299736,93105.0,93092.0,0.010746]
[1767739392656,0.02305405,93103.0,93092.0,0.010746]
[1767739393156,0.09299736,93104.0,93094.0,0.010746]
[1767739393363,0.11605141,93104.0,93094.0,0.010746]
[1767739396062,0.02305405,93103.0,93094.0,0.010746]
[1767739397061,0.02305405,93102.0,93094.0,0.010746]
[1767739400573,0.02305405,93102.0,93096.0,0.010746]
[1767739400770,0.09299736,93103.0,93096.0,0.010746]
[1767739401674,0.09136,93105.0,93096.0,0.010746]
[1767739402371,0.02219823,93099.0,93089.0,0.00429629]
[1767739402564,0.02219823,93099.0,93093.0,0.010746]
[1767739402766,0.09299736,93100.0,93089.0,0.00429629]
[1767739402973,0.09299736,93100.0,93095.0,0.010746]
[1767739403166,0.01145223,93103.0,93089.0,0.00429629]
[1767739403363,0.10068136,93096.0,93077.0,0.0237675]
[1767739403568,0.10068136,93096.0,93088.0,0.010747]
[1767739403770,0.1006982,93100.0,93079.0,0.0237675]
[1767739404165,0.1006982,93100.0,93080.0,0.0237675]
[1767739404473,0.19369556,93100.0,93090.0,0.010747]
[1767739404972,0.19407757,93100.0,93090.0,0.010747]
[1767739405170,0.19369556,93100.0,93090.0,0.010747]
[1767739410674,0.09299736,93099.0,93090.0,0.010747]
[1767739411573,0.09299736,93099.0,93082.0,0.0237675]
[1767739411574,0.09299736,93099.0,93078.0,0.010748]
[1767739411966,0.09299736,93099.0,93085.0,0.010747]
[1767739412468,0.09136,93105.0,93081.0,0.010748]
[1767739412469,0.10887765,93094.0,93081.0,0.010748]
[1767739412667,0.1006982,93090.0,93081.0,0.010748]
[1767739413374,0.19882985,93090.0,93071.0,0.010749]
[1767739413672,0.09813165,93089.0,93071.0,0.010749]
[1767739413869,0.11566079,93089.0,93081.0,0.010748]
[1767739414070,0.11566079,93089.0,93072.0,0.010749]
[1767739414868,0.01752914,93089.0,93083.0,0.010747]
[1767739415070,0.1006982,93090.0,93075.0,0.02271306]
[1767739415269,0.1006982,93090.0,93082.0,0.010747]
[1767739415575,0.1006982,93090.0,93075.0,0.02271306]
[1767739416376,0.1006982,93090.0,93082.0,0.010747]
[1767739416578,0.09136,93095.0,93082.0,0.010747]
[1767739417072,0.1089557,93095.0,93082.0,0.010747]
[1767739418378,0.20708735,93095.0,93082.0,0.010747]
[1767739418680,0.09813165,93094.0,93082.0,0.010747]
[1767739421577,0.09813165,93092.0,93079.0,0.010748]
[1767739421877,0.09813165,93090.0,93078.0,0.010748]
[1767739422081,0.09813165,93090.0,93068.0,0.09136]
[1767739422267,0.09813165,93090.0,93078.0,0.010748]
[1767739422473,0.10887865,93090.0,93077.0,0.010748]
[1767739422668,0.09813165,93090.0,93079.0,0.010748]
[1767739425886,0.09813165,93090.0,93071.0,0.0914]
[1767739426276,0.09813165,93090.0,93079.0,0.010748]
[1767739426579,0.09813165,93090.0,93071.0,0.0914]
[1767739427380,0.09813165,93090.0,93068.0,0.02271306]
[1767739427577,0.09813165,93090.0,93069.0,0.0914]
[1767739427783,0.09813165,93090.0,93080.0,0.010748]
[1767739427976,0.09813165,93090.0,93071.0,0.010749]
[1767739429281,0.09813165,93090.0,93077.0,0.010748]
[1767739429485,0.09813165,93090.0,93078.0,0.010748]
[1767739430788,0.09813165,93081.0,93069.0,0.010749]
[1767739430994,0.09813165,93081.0,93071.0,0.010749]
[1767739432285,0.09813165,93081.0,93059.0,0.11904872]
[1767739432490,0.09813165,93079.0,93060.0,0.0914]
[1767739432680,0.09813165,93079.0,93067.0,0.010749]
[1767739433291,0.10887965,93078.0,93065.0,0.010749]
[1767739433493,0.09813165,93078.0,93067.0,0.010749]
[1767739433992,0.09813165,93078.0,93059.0,0.00227934]
[1767739433993,0.09813165,93076.0,93059.0,0.00227934]
[1767739434397,0.010748,93080.0,93060.0,0.11676938]
[1767739434700,0.09813165,93066.0,93043.0,0.11676938]
[1767739434999,0.09813165,93066.0,93043.0,0.09405632]
[1767739435191,0.01075,93061.0,93045.0,0.010752]
[1767739435694,0.00012991,93060.0,93045.0,0.010752]
[1767739436095,0.00012991,93060.0,93047.0,0.010752]
[1767739438702,0.00012991,93060.0,93047.0,0.102152]
[1767739439299,0.00012991,93060.0,93047.0,0.0914]
[1767739439907,0.09920361,93060.0,93047.0,0.0914]
[1767739440405,0.01075,93059.0,93047.0,0.0914]
[1767739441297,0.09920361,93060.0,93047.0,0.0914]
[1767739441603,0.10995361,93060.0,93045.0,0.010752]
[1767739441903,0.10995361,93060.0,93047.0,0.010752]
[1767739442292,0.10995361,93060.0,93040.0,0.09072182]
[1767739442498,0.00011487,93059.0,93047.0,0.010752]
[1767739442698,0.00012092,93058.0,93047.0,0.010752]
[1767739443002,0.00012092,93058.0,93049.0,0.10147282]
[1767739443806,0.0914,93061.0,93049.0,0.11189912]
[1767739443998,0.010749,93074.0,93059.0,0.01075]
[1767739444196,0.010748,93077.0,93059.0,0.01075]
[1767739444898,0.07576645,93077.0,93054.0,0.010751]
[1767739445100,0.010749,93073.0,93052.0,0.09072182]
[1767739446103,0.010748,93076.0,93060.0,0.01075]
[1767739446408,0.0914,93090.0,93068.0,0.0211773]
[1767739446595,0.010745,93105.0,93075.0,0.09072182]
[1767739446596,0.010746,93095.0,93075.0,0.09072182]
[1767739446801,0.01696558,93095.0,93081.0,0.10146982]
[1767739447105,0.0914,93098.0,93083.0,0.010747]
[1767739447305,0.10876041,93098.0,93083.0,0.09072182]
[1767739447808,0.0782849,93112.0,93087.0,0.11189912]
[1767739448107,0.10953482,93112.0,93096.0,0.010746]
[1767739448306,0.01813482,93112.0,93099.0,0.09072182]
[1767739448498,0.0021478,93119.0,93107.0,0.09072182]
[1767739448699,0.02028355,93119.0,93107.0,0.09072182]
[1767739448898,0.010742,93129.0,93107.0,0.09072182]
[1767739449101,0.0285203,93129.0,93110.0,0.10146582]